Cogmind - Beta 17 @@@ ROGUE MODE // 2026.07.01 @ 18:19:40 Player: Singularius Result: Destroyed by P-80 Master with Gamma Rifle Performance ------------- Evolutions (9) 4500 Regions Visited (16) 3200 Robots Destroyed (306) 1530 Value Destroyed (16839) 16839 Prototype IDs (42) 840 Alien Tech Used (0) 0 Bonus (7079) 7079 TOTAL SCORE: 33988 Bonus ------- High Alert Combat Kills 1652 Follower Combat Kills 874 Network Hubs Disabled 200 Met R17 at Cetus 500 Met R17 at Research 2000 Acquired SGEMP 2000 Friendly Fire -147 Cogmind --------- Core Integrity 0/1600 Matter 300/300 Energy 100/100 System Corruption 45% Temperature Cool (0) Movement Core (50) Location -1/Access Parts ------- > --- POWER (3) -------- (None) > --- PROPULSION (5) --- (None) > --- UTILITY (13) ----- Advanced Signal Interpreter Experimental Targeting Computer Advanced Target Analyzer > --- WEAPON (4) ------- (None) > --- INVENTORY (5) ---- Biometal Leg Compact Linear Accelerator Compact Linear Accelerator SGEMP Prototype Peak State ------------ > --- POWER ------------ Cooled Antimatter Reactor Quantum Reactor Improved Quantum Reactor > --- PROPULSION ------- Medium Treads Centrium Heavy Treads Advanced Heavy Siege Treads > --- UTILITY ---------- High-capacity Storage Unit Spectral Analyzer Long-range Sensor Array Advanced Signal Interpreter Advanced Targeting Computer Experimental Targeting Computer Advanced Target Analyzer Advanced Target Analyzer Improved Transmission Jammer Centrium Light Armor Plating Centrium Light Armor Plating AEGIS Remote Shield Advanced Field Recycling Unit > --- WEAPON ----------- Enhanced Nova Cannon Cooled Nova Cannon Enhanced Hardcell Cannon Compact Linear Accelerator > --- INVENTORY -------- Quantum Reactor Light Quantum Reactor Light Quantum Reactor Light Quantum Reactor Medium Treads Biometal Leg Centrium Leg High-density Centrium Leg High-density Centrium Leg Advanced Heat Sink Advanced Heat Sink Advanced Heat Sink Matter Compressor Enhanced Hardcell Cannon Compact Linear Accelerator Compact Linear Accelerator Compact Linear Accelerator Compact Linear Accelerator SGEMP Prototype [Rating: 211] Favorites ----------- Power Quantum Reactor Engine Reinforced Deuterium Engine Power Core Neutrino Core Reactor Quantum Reactor Propulsion Armored Treads Treads Armored Treads Leg Aluminum Leg Utility Advanced Targeting Computer Device Advanced Heat Sink Storage High-capacity Storage Unit Processor Advanced Targeting Computer Protection Improved Medium Armor Plating Weapon Gauss Cannon Energy Gun Warp Gun Energy Cannon Enhanced Nova Cannon Ballistic Gun Gauss Rifle Ballistic Cannon Gauss Cannon Launcher Enhanced Gamma Bomb Array Slashing Weapon Makeshift Sword Build | -11 -10 -10 -9 -8 -7 -6 -5 -4 -4 -4 -4 -4 -3 -2 -2 -1 ------- Run | Yrd Mat Min Mat Mat Fac Fac Fac Fac Ext Cet Arc Hub Res Res Tes Acc Slots Evolved 18 | . . . 2 2 2 2 2 2 . . . . 2 2 . 2 Power 2 | . . . . . . 1 . . . . . . . 1 . . Propulsion 3 | . . . 2 . . 1 . . . . . . . . . . Utility 11 | . . . . 1 2 . 1 2 . . . . 2 1 . 2 Weapon 2 | . . . . 1 . . 1 . . . . . . . . . Parts Attached 248 | 7 6 4 10 10 19 24 29 7 16 10 2 8 21 33 24 18 Power 40 | 1 2 . 2 . 2 3 4 1 2 4 1 . 2 4 6 6 Engine 9 | 1 2 . 2 . 2 1 1 . . . . . . . . . Core 6 | . . . . . . 1 3 . 1 1 . . . . . . Reactor 25 | . . . . . . 1 . 1 1 3 1 . 2 4 6 6 Propulsion 47 | 2 . 2 6 2 2 4 9 1 5 . . 1 3 5 2 3 Treads 38 | 2 . . 4 2 2 4 5 1 5 . . 1 3 5 1 3 Leg 9 | . . 2 2 . . . 4 . . . . . . . 1 . Wheel . | . . . . . . . . . . . . . . . . . Hover . | . . . . . . . . . . . . . . . . . Flight . | . . . . . . . . . . . . . . . . . Utility 99 | 2 1 2 . 3 10 9 12 4 6 4 1 4 12 16 10 3 Device 46 | 1 . 1 . . 1 5 6 3 3 1 1 3 6 6 7 2 Storage 6 | 1 1 . . . 1 . . . . 1 . 1 1 . . . Processor 13 | . . 1 . . 1 . . 1 . . . . 1 7 2 . Hackware . | . . . . . . . . . . . . . . . . . Protection 34 | . . . . 3 7 4 6 . 3 2 . . 4 3 1 1 Artifact . | . . . . . . . . . . . . . . . . . Weapon 62 | 2 3 . 2 5 5 8 4 1 3 2 . 3 4 8 6 6 Energy Gun 1 | . . . . . . . . . . . . . . . 1 . Energy Cannon 2 | . . . . . . . . . . . . . . . 2 . Ballistic Gun 26 | 2 . . 1 3 1 4 . . 3 2 . 3 2 4 1 . Ballistic Cannon 27 | . 2 . 1 2 3 3 4 . . . . . 2 4 1 5 Launcher 5 | . 1 . . . . 1 . 1 . . . . . . 1 1 Special Weapon . | . . . . . . . . . . . . . . . . . Impact Weapon . | . . . . . . . . . . . . . . . . . Slashing Weapon 1 | . . . . . 1 . . . . . . . . . . . Piercing Weapon . | . . . . . . . . . . . . . . . . . Special Melee Weapon . | . . . . . . . . . . . . . . . . . Unidentified Prototypes 25 | . . . 1 . . 1 . 1 . 2 . . 2 2 14 2 Corrupted Parts 1 | . . . . . . . . . 1 . . . . . . . System Corruption 4 | . . . . . . . . . 4 . . . . . . . Parts Lost 82 | . . . . . . 8 10 . 1 2 . 3 1 19 8 30 Power 16 | . . . . . . . 1 . . . . 2 . 3 3 7 Propulsion 18 | . . . . . . 3 5 . . . . . . 3 1 6 Utility 30 | . . . . . . 2 2 . 1 2 . 1 1 8 2 11 Weapon 18 | . . . . . . 3 2 . . . . . . 5 2 6 Highest Loss Streak 27 | . . . . . . 4 4 . 1 1 . 3 1 12 4 27 To Critical Strikes 1 | . . . . . . . . . 1 . . . . . . . Average Backups 15 | 2 7 14 14 14 14 18 17 17 17 15 16 16 15 14 17 16 Power 1 | . 1 2 1 2 1 1 2 1 1 1 1 1 1 1 2 2 Propulsion 2 | 1 3 3 3 4 3 1 . 1 1 2 2 2 2 3 6 5 Utility 6 | . . 2 2 2 5 8 10 13 10 8 9 9 7 5 5 3 Weapon 4 | . 2 6 6 6 4 6 4 2 3 4 4 4 4 3 2 4 Tool/Special . | . . . . . . . . . . . . . . . . . Unused Backups 52 | . 3 1 4 3 6 3 1 1 1 1 . . 9 3 7 9 Power 9 | . 1 . 1 . 1 . 1 . . . . . 3 . . 2 Propulsion 11 | . 1 1 1 . . . . . . . . . . 2 3 3 Utility 16 | . . . 2 . 3 2 . 1 1 . . . 2 1 2 2 Weapon 16 | . 1 . . 3 2 1 . . . 1 . . 4 . 2 2 Tool/Special . | . . . . . . . . . . . . . . . . . Average Slot Usage (%) 95 | . 99 100 99 99 99 99 98 99 95 88 89 88 89 88 89 86 Engine 4 | . 13 14 11 9 7 7 1 . . . . . . . . . Core 1 | . . . . . . . 5 9 5 1 1 . . . . . Reactor 4 | . . . . . . 4 2 . 5 8 8 9 8 12 12 11 Treads 23 | . 27 3 42 36 29 32 26 24 21 15 15 15 14 12 13 11 Leg 1 | . . 24 . . . . 1 1 . . . . . . . . Device 11 | . 14 9 . 6 7 9 11 21 15 13 10 14 18 14 14 14 Storage 6 | . 14 14 11 9 7 6 5 5 5 5 5 5 4 4 4 3 Processor 10 | . . 4 11 9 7 6 5 9 10 10 10 10 13 17 23 23 Protection 7 | . . . . 1 14 9 10 5 9 11 15 10 9 6 2 7 Ballistic Gun 9 | . 10 . 4 15 8 9 10 4 8 14 15 18 15 9 8 3 Ballistic Cannon 10 | . 17 28 17 11 13 9 11 15 11 5 5 2 3 7 3 4 Peak Build Rating 211 | 7 12 12 25 31 53 65 82 93 114 130 130 132 145 176 186 211 Average Rating 87 | 5 9 11 23 29 46 61 73 88 100 123 129 129 137 161 167 190 On Entrance 78 | . 7 12 12 25 31 50 62 79 90 114 130 130 105 145 149 186 Avg Prop Armor Cover (%) 2 | . . . . . . 4 2 2 . . . . . 6 . . Naked Turns . | . . . . . . . . . . . . . . . . . Heaviest Build 186 | 12 36 36 35 48 114 128 113 113 121 120 126 128 146 186 167 180 Greatest Support 195 | 40 40 40 80 80 80 100 123 126 180 180 180 180 173 195 190 188 Greatest Overweight (x) 1 | . 1 1 1 . 1 1 1 1 1 . . . . 1 . 1 Average Overweight (x) . | . . . . . . . . . . . . . . . . . Largest Inventory Capacity 20 | 8 15 15 15 15 20 20 20 20 20 20 20 20 20 20 20 20 Average Capacity 18 | 7 9 15 15 15 15 20 20 20 20 20 20 20 20 20 20 19 Most Carried 20 | 4 15 15 15 15 16 20 20 20 20 20 20 20 20 20 20 20 Average Carried 17 | 2 7 14 14 14 14 19 19 19 19 19 19 19 19 17 19 18 Final Capacity 20 | 8 15 15 15 15 20 20 20 20 20 20 20 20 20 20 20 5 Final Carried 20 | 4 15 15 15 15 16 20 20 20 20 20 20 20 20 17 20 5 Class Distribution -------------------- 32% | Scavenger-Tank 16% | Mutant 11% | Tank 11% | Gunner 9% | Scientist-Gunner 8% | Scientist-Tank 4% | Scientist-Skirmisher 3% | Scavenger-Gunner Dominant Class ---------------- Mutant | -10/Materials Mutant | -10/Mines Mutant | -9/Materials Gunner | -8/Materials Tank | -7/Factory Scientist-Gunner | -6/Factory Scientist-Tank | -5/Factory Scientist-Skirmisher | -4/Factory Scavenger-Tank | -4/Extension Scavenger-Tank | -4/Cetus Scavenger-Tank | -4/Archives Scavenger-Tank | -4/Hub_04(d) Scavenger-Tank | -3/Research Scavenger-Tank | -2/Research Scavenger-Gunner | -2/Testing Scavenger-Tank | -1/Access Resources | -11 -10 -10 -9 -8 -7 -6 -5 -4 -4 -4 -4 -4 -3 -2 -2 -1 ----------- Run | Yrd Mat Min Mat Mat Fac Fac Fac Fac Ext Cet Arc Hub Res Res Tes Acc Matter Collected 12728 | 196 280 112 165 778 778 1502 1919 281 1414 492 312 470 315 2417 937 360 Remotely . | . . . . . . . . . . . . . . . . . Salvage Created 13244 | 28 183 125 200 891 786 1330 2168 311 1052 421 286 1013 204 2266 942 1038 Parts 635 | 3 11 5 15 47 33 59 84 13 26 11 8 55 5 129 65 66 Haulers Intercepted 1 | . . . . . 1 . . . . . . . . . . . Recyclers Shooed 8 | . . . . 1 . 2 1 . 2 . . . . 1 . 1 Parts Field Recycled 150 | . . . . . . 45 25 6 21 . . . 6 19 18 10 Retrieved Matter 2263 | . . . . . . 645 362 119 187 . . . 225 196 319 210 Parts Self-Destructed . | . . . . . . . . . . . . . . . . . Prevented . | . . . . . . . . . . . . . . . . . Parts Restored . | . . . . . . . . . . . . . . . . . Kills | -11 -10 -10 -9 -8 -7 -6 -5 -4 -4 -4 -4 -4 -3 -2 -2 -1 ------- Run | Yrd Mat Min Mat Mat Fac Fac Fac Fac Ext Cet Arc Hub Res Res Tes Acc Combat Hostiles Destroyed 264 | . 9 4 5 19 20 34 50 7 16 8 4 13 3 41 14 17 Melee 1 | . . . . . . 1 . . . . . . . . . . Guns 95 | . 5 . . 8 3 10 15 1 7 4 3 13 2 16 8 . Cannons 145 | . 2 4 5 11 17 13 28 6 9 4 1 . 1 25 3 16 AOE 20 | . 2 . . . . 10 7 . . . . . . . 1 . Classes Destroyed 20 | 1 3 . 1 3 4 3 1 . . 1 . 1 . . 2 . Worker 8 | . . . . . . 5 . . . . . . . 2 . 1 Builder 11 | . . . . 1 . . 3 1 . . . 3 . 1 . 2 Tunneler 2 | 1 . . . 1 . . . . . . . . . . . . Hauler 1 | . . . . . 1 . . . . . . . . . . . Recycler 10 | . . . . 1 . 4 . . 3 . . . . 1 . 1 Mechanic 3 | . . . . . 1 1 1 . . . . . . . . . Operator 2 | . 1 . . . 1 . . . . . . . . . . . Watcher 4 | . . . . . . . . . . 2 . 1 . 1 . . Swarmer 44 | . 6 . . . 3 11 8 1 3 . . . . 6 . 6 Saboteur 1 | . . . . . . . 1 . . . . . . . . . Grunt 72 | . 3 4 2 7 5 13 23 3 5 . . 1 . 5 1 . Brawler 6 | . . . . . 1 . 4 . 1 . . . . . . . Duelist 4 | . . . . . . 1 3 . . . . . . . . . Sentry 35 | . . . 3 10 4 1 3 1 2 . 4 2 1 4 . . Specialist 4 | . . . . . . . . . . . . 4 . . . . Hunter 17 | . . . . 2 . 2 2 . 3 . . 2 2 2 . 2 Programmer 66 | . . . . . 7 5 5 2 . . . 4 . 24 10 9 Behemoth 4 | . . . . . . 1 1 . 2 . . . . . . . Cetus Guard 8 | . . . . . . . . . . 8 . . . . . . Striker 2 | . . . . . . . . . . . . . . . 2 . Alpha 7 1 | . . . . . . . . . . . . . . . 1 . Savage 1 | . . . . . . . . . 1 . . . . . . . Best Kill Streak 8 | 1 3 2 3 4 6 7 6 5 3 5 1 4 2 8 3 6 Combat Bots Only 7 | . 3 2 3 4 5 7 6 4 3 4 1 4 2 7 3 6 Max Kills in Single Turn 3 | 1 1 1 1 2 2 3 3 1 2 1 1 3 2 2 1 2 Gunslinging . | . . . . . . . . . . . . . . . . . Exploded 3 | . 1 . . . . 3 2 . . . . . . . 1 . Melee 1 | . . . . . . 1 . . . . . . . . . . Uniques/NPCs Destroyed . | . . . . . . . . . . . . . . . . . Combat | -11 -10 -10 -9 -8 -7 -6 -5 -4 -4 -4 -4 -4 -3 -2 -2 -1 -------- Run | Yrd Mat Min Mat Mat Fac Fac Fac Fac Ext Cet Arc Hub Res Res Tes Acc Hostile Shots Fired 2267 | . 27 13 14 73 133 306 200 25 95 57 19 116 8 549 185 447 Missed 694 | . 6 2 1 19 47 103 72 7 40 19 5 36 3 173 44 117 Hits 1573 | . 21 11 13 54 86 203 128 18 55 38 14 80 5 376 141 330 Melee 7 | . . . . . . 2 3 . 2 . . . . . . . Projectile 1566 | . 21 11 13 54 86 201 125 18 53 38 14 80 5 376 141 330 AOE 2 | . . . . . . 2 . . . . . . . . . . Critical Strikes 115 | . . 2 1 4 2 12 9 2 1 9 . 4 . 27 14 28 Part Disruptions 13 | . . . . . . 1 . . . . . 1 . 5 2 4 Damage Taken 27696 | . 187 168 176 821 979 3500 2612 352 693 793 367 1702 143 6852 2024 6327 Core 3089 | . 29 35 24 86 93 236 102 83 32 20 27 45 . 553 108 1616 Absorbed by Shields 6318 | . . . . . . . . . 334 222 . . . 2028 1726 2008 Ignored by Resistances 32 | . . . . . 12 20 . . . . . . . . . . Regen/Repaired (Parts) 515 | . 61 . . . . 454 . . . . . . . . . . Core Remaining (%) 83 | 100 . 74 94 84 86 72 89 . . . . 82 100 . 54 . Volleys Fired 677 | 1 17 9 9 43 32 89 83 24 49 25 14 28 9 99 93 53 Largest 4 | 2 2 2 2 3 3 3 4 4 4 4 4 4 4 4 4 4 Hottest 286 | 40 66 66 66 93 142 146 157 157 157 153 150 150 164 196 213 286 Shots Fired 2011 | 2 32 18 18 129 96 223 300 58 197 100 54 99 24 364 145 152 Gun 974 | 2 24 . 7 75 24 95 144 12 86 66 41 95 22 167 95 19 Cannon 1014 | . 6 18 11 54 72 121 150 46 111 34 13 4 2 197 42 133 Launcher 23 | . 2 . . . . 7 6 . . . . . . . 8 . Special . | . . . . . . . . . . . . . . . . . Kinetic 1861 | 2 30 18 18 129 96 216 294 58 197 100 54 99 24 364 81 81 Thermal 127 | . . . . . . . . . . . . . . . 56 71 Explosive 15 | . 2 . . . . 7 6 . . . . . . . . . Electromagnetic 8 | . . . . . . . . . . . . . . . 8 . Robot Hit Streak 30 | 1 7 7 4 17 12 27 21 18 15 9 27 8 13 14 30 12 Robot Miss Streak 6 | . 3 1 2 3 4 5 3 1 4 3 1 3 2 4 6 4 Penetration Max 2 | . . . . 1 . 1 2 1 1 1 . 2 1 1 1 . Secondary Targets 5 | . 1 . . . . . . . . . . 4 . . . . Max Gunslinging Chain 1 | . 1 . . . . . . . . . . 1 . . . . Shots Hit Robots 1273 | 1 18 12 13 93 61 169 209 33 130 65 42 57 13 192 90 75 Core Hits 608 | 1 12 5 6 56 40 78 113 13 61 35 10 29 7 77 41 24 Critical Kills 25 | . . . . . . 2 . . 1 1 2 6 1 8 3 1 Critical Parts Destroyed 42 | . . . . . 1 . 5 1 . 2 1 3 2 15 12 . Critical Strikes 133 | . 1 2 1 2 2 16 15 3 13 5 7 9 3 32 17 5 Meltdown 1 | . . . . . . . . . . . . . . . . 1 Destroy 74 | . . . . . 1 2 6 1 2 3 6 9 3 24 17 . Blast 58 | . 1 2 1 2 1 14 9 2 11 2 1 . . 8 . 4 Melee Attacks 1 | . . . . . 1 . . . . . . . . . . . Impact . | . . . . . . . . . . . . . . . . . Slashing 1 | . . . . . 1 . . . . . . . . . . . Piercing . | . . . . . . . . . . . . . . . . . Sneak Attacks . | . . . . . . . . . . . . . . . . . Combat Hostiles . | . . . . . . . . . . . . . . . . . Follow-up Attacks . | . . . . . . . . . . . . . . . . . Damage Inflicted 43935 | 11 436 269 239 1787 2235 6212 7442 1036 4294 2194 1178 1810 469 7955 2638 3730 Guns 18074 | 11 160 . 54 1086 439 1753 3187 245 1521 1345 828 1708 413 3373 1673 278 Cannons 22966 | . 85 269 185 701 1551 3188 3514 791 2773 849 350 42 56 4582 578 3452 Explosions 2845 | . 191 . . . 245 1221 741 . . . . 60 . . 387 . Melee . | . . . . . . . . . . . . . . . . . Ramming 50 | . . . . . . 50 . . . . . . . . . . Kinetic 38034 | 11 245 269 239 1787 1990 4941 6701 1036 4294 2194 1178 1750 469 7955 1011 1964 Thermal 3353 | . . . . . 245 102 . . . . . . . . 1240 1766 Explosive 2051 | . 191 . . . . 1119 741 . . . . . . . . . Electromagnetic 447 | . . . . . . . . . . . . 60 . . 387 . Impact . | . . . . . . . . . . . . . . . . . Slashing . | . . . . . . . . . . . . . . . . . Piercing . | . . . . . . . . . . . . . . . . . Highest Corruption 72 | . . . . . . 13 10 2 6 6 6 9 . 42 72 45 Average Corruption 15 | . . . . . . 9 6 1 3 6 6 7 . 23 55 13 Corruption Purged . | . . . . . . . . . . . . . . . . . Corruption Blocked . | . . . . . . . . . . . . . . . . . Effects 511 | . . . . . . 89 69 7 38 23 12 28 . 93 103 49 Message Errors 121 | . . . . . . 16 15 2 11 7 3 9 . 16 25 17 Matter Fused 96 | . . . . . . 24 14 1 7 4 1 7 . 14 18 6 Heat Flow Errors 61 | . . . . . . 13 10 . 7 2 . 2 . 8 15 4 Energy Discharges 43 | . . . . . . 12 9 . 1 1 . . . 11 6 3 Parts Rejected 12 | . . . . . . . 1 . 1 . . 1 . 6 3 . Parts Fused 8 | . . . . . . . 1 . 2 2 1 . . . 2 . Data Loss (minor) 47 | . . . . . . 11 7 1 4 2 1 2 . 10 6 3 Data Loss (major) 25 | . . . . . . 7 3 1 2 1 1 3 . 2 1 4 Misfires 19 | . . . . . . . 3 1 1 1 1 3 . 5 3 1 Alerts 16 | . . . . . . 1 2 . 2 2 1 . . 4 3 1 Misdirections 20 | . . . . . . . . . . . . . . 3 10 7 Weapon Failures 43 | . . . . . . 5 4 1 . 1 3 1 . 14 11 3 Overload Shots . | . . . . . . . . . . . . . . . . . Overflow Damage 1037 | . 16 . . . 115 90 120 24 5 . . . . 512 11 144 Projectiles 845 | . . . . . 21 54 78 24 5 . . . . 512 7 144 Explosions 192 | . 16 . . . 94 36 42 . . . . . . . 4 . Melee . | . . . . . . . . . . . . . . . . . Knockbacks 178 | . 1 5 . 2 5 44 24 11 19 . . . . 52 8 7 Impact . | . . . . . . . . . . . . . . . . . Kinetic 159 | . 1 5 . 2 5 36 22 10 19 . . . . 46 6 7 Secondary 19 | . . . . . . 8 2 1 . . . . . 6 2 . Self-Inflicted Damage 522 | . . . . . . . 39 . . . . 102 . . 381 . Shots 22 | . . . . . . . 1 . . . . 1 . . 20 . Rammed 7 | . . . . . . 7 . . . . . . . . . . Targets Rammed 8 | . . . . . . 8 . . . . . . . . . . Kicked . | . . . . . . . . . . . . . . . . . Crushed 1 | . . . . . . 1 . . . . . . . . . . Highest Temperature 618 | . 24 126 23 253 486 441 452 294 479 462 360 143 51 618 353 547 Average Temperature 141 | . 11 59 8 62 137 131 115 83 143 213 156 52 21 209 116 167 Received Heat Transfer 3386 | . 18 129 81 324 147 858 559 106 56 6 54 180 27 333 . 508 Effects 103 | . . . . . 8 5 6 . 3 12 2 . . 57 2 8 Shutdowns 32 | . . . . . 2 2 1 . 1 3 . . . 22 . 1 Energy Bleed 9 | . . . . . 1 1 1 . 1 . . . . 3 . 2 Interference 22 | . . . . . . 1 . . . . . . . 17 2 2 Matter Decay 5 | . . . . . 1 . . . . 1 . . . 2 . 1 Short Circuit 7 | . . . . . . 1 . . 1 . 1 . . 4 . . Damage (minor) 7 | . . . . . 2 . . . . 1 1 . . 3 . . Damage (major) 20 | . . . . . 2 . 4 . . 7 . . . 5 . 2 Damage (core) 1 | . . . . . . . . . . . . . . 1 . . Siege Activations . | . . . . . . . . . . . . . . . . . Martial Activations . | . . . . . . . . . . . . . . . . . Shielding Activations . | . . . . . . . . . . . . . . . . . Robots Disrupted 1 | . . . . . . . . . . . . . . . 1 . Combat Hostiles 1 | . . . . . . . . . . . . . . . 1 . Robots Corrupted 2 | . . . . . . . . . . . . . . . 2 . Combat Hostiles 2 | . . . . . . . . . . . . . . . 2 . Parts Fried 4 | . . . . . . . . . . . . . . . 4 . Impact Corruptions 2 | . . . . . . 1 . . . . . . . . 1 . Robots Melted 1 | . . . . . . . . . . . . . . . . 1 Combat Hostiles 1 | . . . . . . . . . . . . . . . . 1 Parts Melted 2 | . . . . . . . . . . . . . . . . 2 Heat Transferred 3482 | . . . . . 200 100 . . . . . . . . 1813 1369 Parts Sabotaged . | . . . . . . . . . . . . . . . . . Parts Stolen . | . . . . . . . . . . . . . . . . . Parts Stripped . | . . . . . . . . . . . . . . . . . Power Chain Reactions 1 | . . . . . . . . . . . . . . . 1 . Alert | -11 -10 -10 -9 -8 -7 -6 -5 -4 -4 -4 -4 -4 -3 -2 -2 -1 ------- Run | Yrd Mat Min Mat Mat Fac Fac Fac Fac Ext Cet Arc Hub Res Res Tes Acc Maximum Alert Level 4 | . . . . 1 2 3 4 2 2 2 1 1 . 3 2 1 Low Security (%) 45 | 100 100 100 100 91 38 5 . . 22 . 89 75 100 71 . 77 Level 1 28 | . . . . 8 38 39 13 67 29 82 10 24 . 8 91 22 Level 2 17 | . . . . . 22 43 17 32 47 17 . . . 13 8 . Level 3 8 | . . . . . . 11 65 . . . . . . 7 . . Level 4 . | . . . . . . . 3 . . . . . . . . . Level 5 . | . . . . . . . . . . . . . . . . . High Security . | . . . . . . . . . . . . . . . . . Max Security . | . . . . . . . . . . . . . . . . . Peak Influence 1116 | 5 129 65 92 227 505 796 1116 542 687 457 212 393 192 812 452 359 Initial 542 | . 3 . . . 82 242 388 542 181 380 98 42 192 . 452 186 Average 283 | 1 23 7 14 103 214 478 753 377 379 330 157 111 70 202 330 170 Influence Increases 10248 | 5 275 115 160 603 822 1345 1466 233 1291 221 164 703 123 1411 485 826 Destroy 0b10 Robot/C 5680 | . 180 80 100 380 400 680 1000 140 720 160 80 260 60 820 280 340 Destroy 0b10 Robot/NC 245 | 5 5 . . 15 15 50 20 5 55 10 . 20 . 25 . 20 Destroy Leader 1232 | . 30 20 40 140 142 160 200 30 86 . . 72 20 182 40 70 Allied During Kill 237 | . . . . . . . . . 237 . . . . . . . Successful Hack 208 | . 47 . 19 18 24 29 . 14 21 12 . 24 . . . . Disable Machine 705 | . . 15 . 45 135 210 30 . 15 . 60 45 . 45 75 30 Destroy Structure 1281 | . 13 . 1 5 91 96 126 44 82 24 24 282 28 219 75 171 Partial Spotted 30 | . . . . . . . . . . . . . 15 . . 15 Lose Combat Pursuer 630 | . . . . . 15 120 90 . 75 15 . . . 120 15 180 Influence Decreases 10030 | . 280 115 158 422 510 1047 1151 970 981 655 289 458 490 607 978 919 Entered New Map 2701 | . 2 . . 2 101 253 405 566 190 301 149 80 175 . 352 125 Time Decay 6329 | . 278 115 158 420 409 714 646 404 601 334 140 348 305 417 546 494 Lost Part 820 | . . . . . . 80 100 . 10 20 . 30 10 190 80 300 Lost Ally 180 | . . . . . . . . . 180 . . . . . . . Squads Dispatched 87 | . 2 . 2 4 10 12 16 2 5 . . 6 6 14 3 5 Investigation 9 | . 2 . . . . 1 1 1 3 . . . 1 . . . Extermination 32 | . . . . . 5 5 3 1 . . . 3 . 8 3 4 Reinforcement 23 | . . . 2 1 2 1 4 . 1 . . 3 5 3 . 1 Assault 5 | . . . . . . 2 2 . 1 . . . . . . . Garrison 18 | . . . . 3 3 3 6 . . . . . . 3 . . Intercept . | . . . . . . . . . . . . . . . . . Searches Triggered . | . . . . . . . . . . . . . . . . . Construction Impeded 7 | . . . . . . 1 3 . 1 . . . . 2 . . Haulers Reinforced 1 | . . . . . . . . . . . . . 1 . . . Active Scanning Responses . | . . . . . . . . . . . . . . . . . Cargo Convoy Interrupts . | . . . . . . . . . . . . . . . . . Stealth | -11 -10 -10 -9 -8 -7 -6 -5 -4 -4 -4 -4 -4 -3 -2 -2 -1 --------- Run | Yrd Mat Min Mat Mat Fac Fac Fac Fac Ext Cet Arc Hub Res Res Tes Acc Distress Signals 28 | . 1 . 2 2 1 2 1 1 2 2 . 5 2 3 2 2 Communications Jammed 26 | . . . . . . . . . . . . . . . . 26 Distress Signals 26 | . . . . . . . . . . . . . . . . 26 Times Spotted 436 | . 16 4 9 29 30 56 61 14 45 8 8 26 4 62 25 39 Peak Tracking Total 12 | . 4 2 3 4 5 8 7 4 10 5 1 6 2 12 5 12 Tactical Retreats 29 | . . . . . 1 6 5 . 4 1 . . . 5 1 6 Traps | -11 -10 -10 -9 -8 -7 -6 -5 -4 -4 -4 -4 -4 -3 -2 -2 -1 ------- Run | Yrd Mat Min Mat Mat Fac Fac Fac Fac Ext Cet Arc Hub Res Res Tes Acc Traps Triggered 19 | . 2 . . . 3 6 2 1 . . . . 1 2 1 1 Indirectly . | . . . . . . . . . . . . . . . . . Trap Hack Attempts . | . . . . . . . . . . . . . . . . . Triggered . | . . . . . . . . . . . . . . . . . Disarmed . | . . . . . . . . . . . . . . . . . Reprogrammed 7 | . . . 7 . . . . . . . . . . . . . Reused . | . . . . . . . . . . . . . . . . . Traps Extracted . | . . . . . . . . . . . . . . . . . Installed . | . . . . . . . . . . . . . . . . . Triggered . | . . . . . . . . . . . . . . . . . Machines | -11 -10 -10 -9 -8 -7 -6 -5 -4 -4 -4 -4 -4 -3 -2 -2 -1 ---------- Run | Yrd Mat Min Mat Mat Fac Fac Fac Fac Ext Cet Arc Hub Res Res Tes Acc Machines Disabled 51 | . . 1 . 3 9 14 2 . 4 . 4 3 . 3 6 2 Max in Single Turn 8 | . . 1 . 1 5 8 1 . 1 . 1 2 . 1 1 1 Network Hub 1 | . . . . . . . . . . . . 1 . . . . Machines Repaired . | . . . . . . . . . . . . . . . . . Machines Dismantled . | . . . . . . . . . . . . . . . . . Machines Sabotaged . | . . . . . . . . . . . . . . . . . Overloaded Fab Kills . | . . . . . . . . . . . . . . . . . Hacking | -11 -10 -10 -9 -8 -7 -6 -5 -4 -4 -4 -4 -4 -3 -2 -2 -1 --------- Run | Yrd Mat Min Mat Mat Fac Fac Fac Fac Ext Cet Arc Hub Res Res Tes Acc Machines Accessed 62 | . 8 . 5 7 9 9 2 4 7 3 1 3 1 2 1 . Terminals 41 | . 6 . 5 6 5 3 . 2 7 3 . 3 . 1 . . Fabricators 3 | . . . . . 1 . . 1 . . . . . . 1 . Repair Stations 5 | . 1 . . . 1 2 1 . . . . . . . . . Recycling Units 6 | . 1 . . . . 3 . 1 . . . . 1 . . . Scanalyzers 4 | . . . . 1 1 1 1 . . . . . . . . . Garrison Access 2 | . . . . . 1 . . . . . . . . 1 . . Total Hacks 136 | . 18 . 17 16 19 21 4 7 13 8 2 7 1 2 1 . Successful 66 | . 11 . 10 7 8 12 3 2 4 3 2 4 . . . . Failed 70 | . 7 . 7 9 11 9 1 5 9 5 . 3 1 2 1 . Catastrophic 18 | . . . . 4 3 . . 3 1 3 . 2 . 2 . . Database Lockouts . | . . . . . . . . . . . . . . . . . Manual 16 | . 4 . 1 6 1 4 . . . . . . . . . . Terminals 99 | . 14 . 17 15 11 9 . 4 13 8 . 7 . 1 . . Fabricators 5 | . . . . . 3 . . 1 . . . . . . 1 . Repair Stations 8 | . 2 . . . 1 4 1 . . . . . . . . . Recycling Units 10 | . 2 . . . . 5 . 2 . . . . 1 . . . Scanalyzers 10 | . . . . 1 3 3 3 . . . . . . . . . Garrison Access 2 | . . . . . 1 . . . . . . . . 1 . . Terminal Hacks 48 | . 8 . 10 7 4 5 . 1 4 3 2 4 . . . . Record 6 | . . . . . . . . . . 3 2 1 . . . . Part Schematic 1 | . . . . . . 1 . . . . . . . . . . Prototype ID Bank 9 | . 2 . 1 2 2 1 . . . . . 1 . . . . Open Door 4 | . . . . . . . . . 4 . . . . . . . Emergency Access Points 2 | . 1 . . . . 1 . . . . . . . . . . Alert Level 3 | . . . . 1 . 1 . . . . . 1 . . . . Locate Traps 8 | . 1 . 3 1 2 1 . . . . . . . . . . Reprogram Traps 3 | . . . 3 . . . . . . . . . . . . . Surveillance Status 1 | . . . 1 . . . . . . . . . . . . . Patrol Status 4 | . 2 . 1 1 . . . . . . . . . . . . Zone Layout 7 | . 2 . 1 2 . . . 1 . . . 1 . . . . Fabricator Hacks 1 | . . . . . 1 . . . . . . . . . . . Build 1 | . . . . . 1 . . . . . . . . . . . Repair Station Hacks 6 | . 2 . . . . 4 . . . . . . . . . . Scan Component 3 | . 1 . . . . 2 . . . . . . . . . . Repair 3 | . 1 . . . . 2 . . . . . . . . . . Recycling Unit Hacks 4 | . 1 . . . . 2 . 1 . . . . . . . . Retrieve Matter 3 | . . . . . . 2 . 1 . . . . . . . . Retrieve Components 1 | . 1 . . . . . . . . . . . . . . . Scanalyzer 7 | . . . . . 3 1 3 . . . . . . . . . Retrieve Study 7 | . . . . . 3 1 3 . . . . . . . . . Garrison Access Hacks . | . . . . . . . . . . . . . . . . . Unauthorized Hacks . | . . . . . . . . . . . . . . . . . Terminals . | . . . . . . . . . . . . . . . . . Fabricators . | . . . . . . . . . . . . . . . . . Repair Stations . | . . . . . . . . . . . . . . . . . Recycling Units . | . . . . . . . . . . . . . . . . . Scanalyzers . | . . . . . . . . . . . . . . . . . Garrison Access . | . . . . . . . . . . . . . . . . . Data Cores Recovered 2 | . 1 . . . 1 . . . . . . . . . . . Used 2 | . 1 . . . 1 . . . . . . . . . . . Hacking Detections 49 | . 6 . 3 6 8 9 1 4 4 3 . 2 . 2 1 . Full Trace Events 2 | . . . . . . . . . 2 . . . . . . . Feedback Events . | . . . . . . . . . . . . . . . . . Feedback Blocked . | . . . . . . . . . . . . . . . . . Robot Schematics Acquired . | . . . . . . . . . . . . . . . . . Robots Built . | . . . . . . . . . . . . . . . . . Authchips . | . . . . . . . . . . . . . . . . . Time . | . . . . . . . . . . . . . . . . . Total Robot Build Rating . | . . . . . . . . . . . . . . . . . Part Schematics Acquired 1 | . . . . . . 1 . . . . . . . . . . Parts Built 2 | . . . . . 2 . . . . . . . . . . . Authchips . | . . . . . . . . . . . . . . . . . Time 117 | . . . . . 117 . . . . . . . . . . . Total Part Build Rating 14 | . . . . . 14 . . . . . . . . . . . Part Studies Acquired 7 | . . . . . 3 1 3 . . . . . . . . . Parts Repaired 3 | . 1 . . . . 2 . . . . . . . . . . Time 102 | . 26 . . . . 76 . . . . . . . . . . Parts Recycled . | . . . . . . . . . . . . . . . . . Recycled Matter . | . . . . . . . . . . . . . . . . . Retrieved Matter . | . . . . . . . . . . . . . . . . . Retrieved Components 3 | . 3 . . . . . . . . . . . . . . . Parts Scanalyzed . | . . . . . . . . . . . . . . . . . Part Schematics Acquired . | . . . . . . . . . . . . . . . . . Parts Damaged . | . . . . . . . . . . . . . . . . . Bothacking | -11 -10 -10 -9 -8 -7 -6 -5 -4 -4 -4 -4 -4 -3 -2 -2 -1 ------------ Run | Yrd Mat Min Mat Mat Fac Fac Fac Fac Ext Cet Arc Hub Res Res Tes Acc Used RIF Installer . | . . . . . . . . . . . . . . . . . Robots Hacked . | . . . . . . . . . . . . . . . . . Non-combat . | . . . . . . . . . . . . . . . . . Combat . | . . . . . . . . . . . . . . . . . Robot Hacks Applied . | . . . . . . . . . . . . . . . . . Relay Couplers Released 4 | . . . . . . . 4 . . . . . . . . . Programmers 4 | . . . . . . . 4 . . . . . . . . . Fabnet Peak Effective % . | . . . . . . . . . . . . . . . . . Robots Rewired 4 | . . . . . . . . . 4 . . . . . . . Allies Hacked . | . . . . . . . . . . . . . . . . . Hacks Repelled . | . . . . . . . . . . . . . . . . . Allies | -11 -10 -10 -9 -8 -7 -6 -5 -4 -4 -4 -4 -4 -3 -2 -2 -1 -------- Run | Yrd Mat Min Mat Mat Fac Fac Fac Fac Ext Cet Arc Hub Res Res Tes Acc Total Allies 10 | . . . . . . . . . 10 . . . . . . . Largest Group 5 | . . . . . . . . . 5 . . . . . . . Highest-Rated Group 331 | . . . . . . . . . 331 . . . . . . . Highest-Rated Ally 159 | . . . . . . . . . 159 . . . . . . . Total Orders . | . . . . . . . . . . . . . . . . . Ally Attacks 114 | . . . . . . . . . 114 . . . . . . . Total Damage 3764 | . . . . . . . . . 3764 . . . . . . . Kills 28 | . . . . . . . . . 28 . . . . . . . Allies Corrupted . | . . . . . . . . . . . . . . . . . Allies Melted . | . . . . . . . . . . . . . . . . . Intel | -11 -10 -10 -9 -8 -7 -6 -5 -4 -4 -4 -4 -4 -3 -2 -2 -1 ------- Run | Yrd Mat Min Mat Mat Fac Fac Fac Fac Ext Cet Arc Hub Res Res Tes Acc Active Infowar (turns) 13823 | 11 1457 611 . 1086 2170 644 934 944 137 . . . 897 2145 1567 1220 Optics 5789 | . . . . . . . . . . . . . 879 2145 1545 1220 Sensors 5613 | . . . . . . . . 942 136 . . . 897 1105 1355 1178 Terrain 830 | . . . . . . . . . . . . . . 22 808 . Seismic 8204 | 11 1457 611 . 1086 2170 644 934 853 107 . . . 331 . . . Jamming 1175 | . . . . . . . . . . . . . . . . 1175 ECM 1 | . . . . . . . . . . . . . . . 1 . Robot Analysis Total . | . . . . . . . . . . . . . . . . . Derelict Logs Recovered 1 | . . 1 . . . . . . . . . . . . . . Drone Launches . | . . . . . . . . . . . . . . . . . Drone Recoveries . | . . . . . . . . . . . . . . . . . Exploration | -11 -10 -10 -9 -8 -7 -6 -5 -4 -4 -4 -4 -4 -3 -2 -2 -1 ------------- Run | Yrd Mat Min Mat Mat Fac Fac Fac Fac Ext Cet Arc Hub Res Res Tes Acc Turns Passed 24245 | 78 1457 881 1166 1438 2667 3273 2342 977 1932 748 295 864 898 2361 1567 1301 Spaces Moved 12060 | 40 749 451 568 679 1390 1432 1056 533 1029 414 155 449 459 1146 779 731 Core 130 | 2 . . . . . . . . . . . . . . . 128 Treads 11527 | 38 749 55 561 679 1390 1432 1056 533 1029 414 155 449 459 1146 779 603 Legs 403 | . . 396 7 . . . . . . . . . . . . . Wheels . | . . . . . . . . . . . . . . . . . Hover . | . . . . . . . . . . . . . . . . . Flight . | . . . . . . . . . . . . . . . . . Fastest Speed 50 | 50 160 160 120 170 167 168 162 159 155 155 155 155 160 155 155 50 Average Speed 167 | 154 160 186 169 170 170 191 181 168 157 155 155 156 160 159 155 144 Slowest Speed 250 | 160 240 190 250 170 217 217 232 202 232 155 155 160 160 240 160 243 Overloaded Moves . | . . . . . . . . . . . . . . . . . Propulsion Burnouts . | . . . . . . . . . . . . . . . . . Robots Hopped . | . . . . . . . . . . . . . . . . . Potential Cave-ins . | . . . . . . . . . . . . . . . . . Cave-ins Triggered . | . . . . . . . . . . . . . . . . . Exploration Rate (%) 48 | 4 91 96 51 64 34 45 18 12 88 78 90 44 10 22 57 22 Regions Visited 16 Branch Regions 6 Pre-discovered Areas . | . . . . . . . . . . . . . . . . . Known Exits Taken 8 | . . . . . . . . 1 1 1 1 1 1 1 1 . Unknown Exits Taken 8 | 1 1 1 1 1 1 1 1 . . . . . . . . . Scrap Searched 2 | . . 2 . . . . . . . . . . . . . . Spaces Dug 48 | . . . . . 1 3 4 11 . . . 2 4 1 5 17 Terrain Destroyed 779 | . 22 . 1 . 93 109 68 23 36 10 17 211 16 83 41 49 Melee 1 | . . . . . 1 . . . . . . . . . . . Projectile 417 | . . . 1 . 33 37 52 23 35 10 17 48 16 83 13 49 AOE 360 | . 22 . . . 59 72 16 . . . . 163 . . 28 . Terrain Rammed . | . . . . . . . . . . . . . . . . . Walls Destroyed . | . . . . . . . . . . . . . . . . . Machines Disabled . | . . . . . . . . . . . . . . . . . Actions | -11 -10 -10 -9 -8 -7 -6 -5 -4 -4 -4 -4 -4 -3 -2 -2 -1 --------- Run | Yrd Mat Min Mat Mat Fac Fac Fac Fac Ext Cet Arc Hub Res Res Tes Acc Total 14745 | 51 976 475 758 863 1607 1764 1292 583 1247 474 184 548 613 1429 1007 874 Wait 1167 | . 176 4 148 98 111 149 77 . 83 16 11 51 63 92 44 44 Move 12044 | 39 748 450 567 678 1389 1431 1055 532 1028 413 154 448 458 1145 778 731 Hop . | . . . . . . . . . . . . . . . . . Pick Up 174 | 4 15 4 10 8 14 22 11 5 6 1 1 2 16 23 24 8 Fast Attach 120 | 7 6 . 5 1 9 9 11 3 10 5 . 7 13 15 14 5 Attach 80 | . . 2 3 2 2 10 10 2 4 1 1 . 5 17 8 13 Detach 3 | . . . . . . . 1 1 . . . . . . . 1 Swap 233 | . 5 2 2 23 26 29 32 9 26 7 1 2 16 25 21 7 Drop 216 | . 9 4 14 10 23 15 12 7 23 6 2 10 31 13 25 12 Fire 677 | 1 17 9 9 43 32 89 83 24 49 25 14 28 9 99 93 53 Melee 1 | . . . . . 1 . . . . . . . . . . . Ram . | . . . . . . . . . . . . . . . . . Kick . | . . . . . . . . . . . . . . . . . Crush 8 | . . . . . . 8 . . . . . . . . . . Escape Stasis 4 | . . . . . . 2 . . . . . . 2 . . . Rewire 18 | . . . . . . . . . 18 . . . . . . . Trap . | . . . . . . . . . . . . . . . . . Miscellaneous . | . . . . . . . . . . . . . . . . . Route ------- -11/Scrapyard -10/Materials (discovered 3 exits: *Mat x2 / [*Min]) -10/Mines (discovered 2 exits: *Mat x2) -9/Materials (discovered 2 exits: *Mat x2) -8/Materials -7/Factory (discovered 3 exits: *Fac / [*Sto] / [*Low]) -6/Factory -5/Factory -4/Factory -4/Extension (discovered 2 exits: *Res / *Cet) -4/Cetus (discovered 3 exits: *Res x2 / *Arc) -4/Archives (discovered 3 exits: *Res / *Hub x2) -4/Hub_04(d) -3/Research -2/Research -2/Testing -1/Access History --------- Turn | Location | Event 9 | -11/Scrapyard | Discovered new exit (range 14) 79 | -11/Scrapyard | Entered Materials 317 | -10/Materials | Build established: Mutant 417 | -10/Materials | Discovered new exit (range 11) 493 | -10/Materials | Discovered new exit (range 14) 679 | -10/Materials | Derelicts attacked the area 1134 | -10/Materials | Repaired Lgt. Treads 1160 | -10/Materials | Discovered new exit (range 12) 1536 | -10/Materials | Entered Mines 1542 | -10/Mines | Met a Derelict bent on vengeance 1633 | -10/Mines | A weapon hastily lodged in a ceiling crevice suddenly fell to the ground 1660 | -10/Mines | Learned Materials trap positions 1877 | -10/Mines | Discovered new exit (range 9) 2008 | -10/Mines | Received a Rocket Launcher from a helpful Derelict 2324 | -10/Mines | Discovered new exit (range 14) 2417 | -10/Mines | Entered Materials 2417 | -9/Materials | Evolved 2 slots: Propulsion x2 2418 | -9/Materials | Loaded intel: 10 trap records 2940 | -9/Materials | Discovered new exit (range 8) 3298 | -9/Materials | Discovered new exit (range 15) 3583 | -9/Materials | Entered another Materials area 3583 | -8/Materials | Evolved 2 slots: Utility x1, Weapon x1 3874 | -8/Materials | Build established: Gunner 3963 | -8/Materials | Garrison activated, responded to threat 4846 | -8/Materials | Discovered new exit (range 8) 5021 | -8/Materials | Entered Factory 5021 | -7/Factory | Evolved 2 slots: Utility x2 5097 | -7/Factory | Discovered new exit (range 7) 5217 | -7/Factory | Discovered new exit (range 11) 5358 | -7/Factory | Build established: Tank 5995 | -7/Factory | Garrison activated, responded to threat 6319 | -7/Factory | Fabricated Hvy. Gauss Cannon? 7435 | -7/Factory | Discovered new exit (range 10) 7688 | -7/Factory | Entered another Factory area 7688 | -6/Factory | Evolved 2 slots: Power x1, Propulsion x1 7876 | -6/Factory | Repaired Arm. Treads+ 8702 | -6/Factory | Lost 4 parts (2u2w) 9158 | -6/Factory | Garrison activated, responded to threat 9185 | -6/Factory | Destroyed 7 combat bots 9569 | -6/Factory | Spotted B-75 Beast 9648 | -6/Factory | Destroyed B-75 Beast 10151 | -6/Factory | System corruption reached 10% 10727 | -6/Factory | Build established: Scientist-Gunner 10838 | -6/Factory | First assault squad dispatched 10854 | -6/Factory | Repaired Arm. Treads+? 10932 | -6/Factory | Discovered new exit (range 16) 10961 | -6/Factory | Entered another Factory area 10961 | -5/Factory | Evolved 2 slots: Utility x1, Weapon x1 11112 | -5/Factory | Garrison activated, responded to threat 11430 | -5/Factory | Build established: Scientist-Tank 11713 | -5/Factory | Spotted B-75 Beast 11796 | -5/Factory | Destroyed B-75 Beast 11861 | -5/Factory | First assault squad dispatched 12379 | -5/Factory | Discovered new exit (range 4) 12605 | -5/Factory | Build established: Scientist-Gunner 12843 | -5/Factory | Garrison activated, responded to threat 12852 | -5/Factory | System corruption reached 10% 13011 | -5/Factory | Lost 4 parts (1p1n1u1w) 13303 | -5/Factory | Entered another Factory area 13303 | -4/Factory | Evolved 2 slots: Utility x2 13588 | -4/Factory | Build established: Scientist-Skirmisher 13885 | -4/Factory | Discovered new exit (range 16) 14097 | -4/Factory | Found Prototype Launcher 14097 | -4/Factory | Identified Com. Tesla Bomb Launcher 14278 | -4/Factory | Identified exit to Extension 14280 | -4/Factory | Entered Extension 14382 | -4/Extension | Rescued A7 14468 | -4/Extension | Rescued a captive Derelict 14469 | -4/Extension | Rescued a captive Derelict 14794 | -4/Extension | Build established: Scientist-Tank 14869 | -4/Extension | Spotted B-86 Titan 14869 | -4/Extension | Spotted B-86 Titan 14898 | -4/Extension | Destroyed B-86 Titan 14914 | -4/Extension | Destroyed B-86 Titan 14945 | -4/Extension | Lost 5 allies 15243 | -4/Extension | Build established: Scavenger-Tank 15642 | -4/Extension | Rescued a captive Derelict 15966 | -4/Extension | Rescued a captive Derelict 15967 | -4/Extension | Rescued a captive Derelict 16030 | -4/Extension | First assault squad dispatched 16061 | -4/Extension | Discovered new exit (range 10) 16063 | -4/Extension | Discovered new exit (range 6) 16069 | -4/Extension | Disrupted transfer network 16129 | -4/Extension | Lost 4 allies 16183 | -4/Extension | Extracted ID and sensor layout for unrecognized location from A7's data core 16204 | -4/Extension | Identified exit to Cetus 16207 | -4/Extension | Identified exit to Research 16212 | -4/Extension | Entered Cetus 16231 | -4/Cetus | Spotted Cetus Guard 16231 | -4/Cetus | Spotted Cetus Guard 16234 | -4/Cetus | Spotted Cetus Guard 16235 | -4/Cetus | Destroyed Cetus Guard 16244 | -4/Cetus | Destroyed Cetus Guard 16246 | -4/Cetus | Spotted Cetus Guard 16256 | -4/Cetus | Destroyed Cetus Guard 16259 | -4/Cetus | Destroyed Cetus Guard 16551 | -4/Cetus | Discovered exit to Research (range 16) 16695 | -4/Cetus | Discovered new exit (range 16) 16722 | -4/Cetus | Spotted Cetus Guard 16722 | -4/Cetus | Spotted Cetus Guard 16726 | -4/Cetus | Spotted Cetus Guard 16732 | -4/Cetus | Destroyed Cetus Guard 16746 | -4/Cetus | Destroyed Cetus Guard 16801 | -4/Cetus | Destroyed Cetus Guard 16816 | -4/Cetus | Spotted Cetus Guard 16826 | -4/Cetus | Destroyed Cetus Guard 16877 | -4/Cetus | Discovered exit to Research (range 16) 16884 | -4/Cetus | Met Revision 17 16955 | -4/Cetus | Identified exit to Archives 16960 | -4/Cetus | Entered Archives 17077 | -4/Archives | Unable to access archive contents 17093 | -4/Archives | Unable to access archive contents 17096 | -4/Archives | Discovered new exit (range 16) 17125 | -4/Archives | Unable to access archive contents 17128 | -4/Archives | Discovered new exit (range 15) 17142 | -4/Archives | Discovered exit to Research (range 16) 17153 | -4/Archives | Unable to access archive contents 17193 | -4/Archives | Identified exit to Hub_04(d) 17255 | -4/Archives | Entered Hub_04(d) 17326 | -4/Hub_04(d) | Discovered exit to Research (range 13) 17910 | -4/Hub_04(d) | Network Hub disabled 18119 | -4/Hub_04(d) | Entered Research 18119 | -3/Research | Evolved 2 slots: Utility x2 18139 | -3/Research | Lost 3 parts (2p1u) 18319 | -3/Research | Revision forces began assault on 0b10 18440 | -3/Research | Met up with Revision 17++ 18737 | -3/Research | Found Fusion Bomb Launcher 18819 | -3/Research | Research terminal network offline 18986 | -3/Research | Discovered new exit (range 5) 18993 | -3/Research | Identified exit to Research 19017 | -3/Research | Entered another Research area 19017 | -2/Research | Evolved 2 slots: Power x1, Utility x1 20075 | -2/Research | Spotted B-90 Cyclops 20197 | -2/Research | System corruption reached 10% 20582 | -2/Research | System corruption reached 30% 20635 | -2/Research | Garrison activated, responded to threat 20647 | -2/Research | Lost 3 parts (3u) 20831 | -2/Research | Lost 12 parts (2p2n5u3w) 21044 | -2/Research | Destroyed 7 combat bots 21292 | -2/Research | Discovered new exit (range 3) 21339 | -2/Research | Identified exit to Testing 21378 | -2/Research | Entered Testing 21537 | -2/Testing | Found Prototype Device 21538 | -2/Testing | Identified AEGIS Remote Shield 21614 | -2/Testing | Found Prototype Energy Gun 21615 | -2/Testing | Identified Warp Gun 21816 | -2/Testing | Found Prototype Processor 21816 | -2/Testing | Identified Spectral Analyzer 21989 | -2/Testing | Found Prototype Launcher 21990 | -2/Testing | Identified Enh. Gamma Bomb Array 22062 | -2/Testing | Spotted Striker 22062 | -2/Testing | Spotted Striker 22174 | -2/Testing | Spotted Alpha 7 22186 | -2/Testing | Destroyed Striker 22187 | -2/Testing | Destroyed Striker 22234 | -2/Testing | Lost 4 parts (2p1u1w) 22263 | -2/Testing | Destroyed Alpha 7 22281 | -2/Testing | Found Prototype Processor 22281 | -2/Testing | Identified Exp. Targeting Computer 22368 | -2/Testing | Stole the SGEMP Prototype 22474 | -2/Testing | Spotted Superbehemoth 22583 | -2/Testing | Build established: Scavenger-Gunner 22756 | -2/Testing | Found Prototype Energy Cannon 22757 | -2/Testing | Identified Cld. Nova Cannon 22837 | -2/Testing | Discovered new exit (range 5) 22943 | -2/Testing | Identified exit to Access 22945 | -2/Testing | Entered Access 22945 | -1/Access | Evolved 2 slots: Utility x2 23244 | -1/Access | Build established: Scavenger-Tank 23601 | -1/Access | Found Prototype Device 23601 | -1/Access | Identified Exp. Thermal Shield 23752 | -1/Access | System corruption reached 10% 24141 | -1/Access | Found Prototype Launcher 24141 | -1/Access | Identified Ragnarok Missile Launcher 24142 | -1/Access | System corruption reached 30% 24181 | -1/Access | Core integrity fell below 50% 24210 | -1/Access | Lost 27 parts (7p3n11u6w) 24224 | -1/Access | Core integrity fell below 20% 24246 | -1/Access | Destroyed by P-80 Master with Gamma Rifle Last Messages --------------- (-20). 24178_ Overheating: Com. Linear Accelerator damaged (-9). 24178_ Com. Linear Accelerator destroyed. 24178_ Hcp. Storage Unit destroyed. 24179_ Com. Linear Accelerator destroyed. 24180_ Dropped Faulty Ragnarok Missile Launcher. 24180_ Critical hit (Burn: +37). 24181_ Dropped Com. Linear Accelerator. 24181_ Dropped Adv. Field Recycling Unit. 24182_ Acquired 6 matter. 24188_ W-44 Eye sends out distress signal. 24189_ &IQ>B/KQIQ0F6L H=&8CLE TP P:WAT04 24214_ Slug penetrates Wall. 24215_ ALERT: Potential suspicious activity detected, Programmers report to Access Zone 4K. 24223_ Penetrated by Slug. 24223_ Slug penetrates Wall. 24240_ Door malfunctions. Map ----- +----------------------------------------------------+ | ????????????????????????????????????????????????? | | ???????????????????????????????????????????????? | | ???????????????????????????????????????????????? | | ????????????????????????????????????????????????? | | ?????????????????????????????????????????????????? | | ???????????????????????????????????????????????? ? | | ??????????????????????????????????????????????# | | ??????????????????????????????????????????????# | | ??????????????????????????????????????????????+ | | ??????????????????????????????????????????????# | | ??????????????????????????????????????????????# | | ??????????????????????????????????????????????# | | ????????????????????????#"""#?????????????????# | | ????????????????????????# #?????????????????# | | ????????????????????????# #?????????????????# | | ????????????????????????# #?????????????????# | | ????????????????????????+ +?????????????????# | | ????????????????????????# #?????????????????# | | ????????????????????????# #?????????????????# | | ????????????????????????# #?????????????????# | | ????????????????????????# #?????????????????# | | ????????????????????????# #?????????????????# | | ????????????????????????# #?????#######?????# | | ????????????????????????# ####### ####### | | ????????????????????????# | | ????????????????????????#@ | | ????????????????????????# ^ #######+## | | ????????????????????????# Y####### # ] | | ????????????????????????# #?#######+### | | ????????????????????????# #? """"" #?# """"" | | ????????????????????????# u # ""T"" #?#"""""""" | | ????????????????????????# # #?#"""""""" | | ???????????????#######??# p #?# """"" | | ???????????????# ! ?# p# #????? | | ???????????????# ?# # * #????? | | ???????????????# " # #? #??????##### | | ???????????????# """ # #? #??????????? | | ???????????????# """ / #??########??????????? | | ???????????????# " # #????????????????????? | | ???????????????# # #????????????????????? | | ???????????????# * ?# #????????????????????? | | ???????????????# ?# #????????????????????? | | ???????????????#######??# #????????????????????? | | ????????????????????????# #????????????????????? | | ????????????????????????# #????????????????????? | | ????????????????????????# #????????????????????? | | ????????????????????????# #????????????????????? | | ????????????????????????# #????????????????????? | | ????????????????????????# #????????????????????? | | ????????????????????????# #????????????????????? | +----------------------------------------------------+ Best States ------------- Heat Dissipation 87 Energy Generation 69 Energy Capacity 880 Matter Stores 550 Matter Capacity 550 Sight Range 24 Robot Scan Range 18 Terrain Scan Range 24 Terrain Scan Density 10 Jamming Range 14 Armor Coverage 1050 Resistance: KI 30 Resistance: EM 15 Weapon Cycling 20 Phase Shifting 10 Evasion (%) 50 Targeting Accuracy 20 Target Analysis 12 Recoil Reduction 11 Matter Filtering 30 Kinecelleration 40 Item Schematics ----------------- Lrn. Missile Launcher | -6/Factory | Hacked Robot Schematics ------------------ None Fabricated ------------ Hvy. Gauss Cannon | x2 | -7/Factory | Preloaded Repaired ---------- Lgt. Treads | 56% | -10/Materials Arm. Treads | 33% | -6/Factory Arm. Treads | 15% | -6/Factory Studied --------- Gauss Cannon | -7/Factory | Hacked Gauss Rifle | -7/Factory | Hacked Arm. Treads | -7/Factory | Hacked Coil Gun | -6/Factory | Hacked Imp. Medium Treads | -5/Factory | Hacked Imp. Treads | -5/Factory | Hacked Mass Driver | -5/Factory | Hacked Alien Tech Used ----------------- None Achievements -------------- Botjacking Left-hand Path Ooh, Shiny! Prison Break Revising The Future Revolutionary Research Ultimate Loadout Challenges ------------ None Game ------ Seed ArcsightBombardmentRipper Manual? 0 Play Time 05:27:01 Cumulative 163.3 hours Start 2026.07.01 @ 12:28:42 End 2026.07.01 @ 18:19:40 Sessions 1 Manual Loads 0 Difficulty Rogue Special Mode None Game No. 97 Rogue 96 Adventurer 1 Explorer 0 Win Type - Total 0 Types 0/0/0/0/0/0/0/0/0/0 Lore% 56 Gallery% 46 Achievement% 30 Wizard Run 0 Options --------- Layout 1 ASCII 0 Keyboard 0 Movement Numpad Keybinds 0 Fullscreen 1 Font 24/Smallcaps Map View 50x35 Zoom Use 0% Tactical HUD 1 Map Filters NONE Filters NONE Steam 1 RUN: 6845734f-dcae-464b-afc6-e7dd2e75b424